Cogmind - Beta 16 *** ADVENTURER MODE // 2025.12.30 @ 20:26:59 Player: Gentle Jesus Result: Self-destructed Performance ------------- Evolutions (9) 4500 Regions Visited (21) 4200 Robots Destroyed (232) 1160 Value Destroyed (13783) 13783 Prototype IDs (23) 460 Alien Tech Used (1) 200 Bonus (6034) 6034 TOTAL SCORE: 30337 Bonus ------- High Alert Combat Kills 1498 Follower Combat Kills 1581 Met Zhirov 300 Met Warlord at Base 500 MAIN.C Attacked Warlord 500 Built Enhanced Grunts 300 A7 Reached Mainframe 300 Met Warlord at Research 2000 Friendly Fire -945 Cogmind --------- Core Integrity 259/1600 Matter 254/300 Energy 241/600 System Corruption 41% Temperature Cool (0) Movement Core (250) Ox4 Location -1/Access Parts ------- > --- POWER (3) -------- (None) > --- PROPULSION (6) --- (None) > --- UTILITY (12) ----- Advanced Energy Well (fused) Advanced Target Analyzer Advanced Target Analyzer Experimental Core Analyzer > --- WEAPON (4) ------- Hardcell Cannon > --- INVENTORY (5) ---- Medium Matter Pod (100) Point Defense System Transdimensional Reconstructor Advanced Remote Datajack Segregator Peak State ------------ > --- POWER ------------ Neutrino Core Light Quantum Reactor Light Quantum Reactor > --- PROPULSION ------- Advanced Heavy Siege Treads Advanced Heavy Siege Treads Advanced Heavy Siege Treads > --- UTILITY ---------- Advanced Heat Sink Advanced Heat Sink Medium Storage Unit Advanced Signal Interpreter Improved Targeting Computer Experimental Core Analyzer Advanced Phase Shifter Improved Medium Armor Plating Centrium Light Armor Plating Centrium Light Armor Plating Graphene Brace Experimental Hacking Suite > --- WEAPON ----------- Enhanced Quantum Rifle Enhanced Nova Cannon Enhanced Nova Cannon Compact Linear Accelerator > --- INVENTORY -------- Particle Reactor Myomer Leg Myomer Leg Advanced Energy Well Medium Matter Pod Transdimensional Reconstructor Micro-nuke Launcher Advanced Remote Datajack Molecular Deconstructor [Rating: 196] Favorites ----------- Power Quantum Reactor Engine Improved Deuterium Engine Power Core Reinforced Fission Core Reactor Quantum Reactor Propulsion Armored Leg Treads Advanced Heavy Siege Treads Leg Armored Leg Wheel Wheel Hover Unit Improved Hover Unit Utility Advanced Heat Sink Device Advanced Heat Sink Storage Medium Storage Unit Processor Advanced Signal Interpreter Hackware Experimental Hacking Suite Protection Centrium Medium Armor Plating Weapon Enhanced Nova Cannon Energy Gun Advanced Variable Charge Gun Energy Cannon Enhanced Nova Cannon Ballistic Gun Advanced KE Penetrator Ballistic Cannon Heavy Gauss Cannon Launcher Micro-nuke Launcher Special Weapon Molecular Deconstructor Impact Weapon Maul Slashing Weapon Phasing Sabre Piercing Weapon Vortex Lance Build | -11 -10 -10 -10 -9 -6 -6 -6 -6 -5 -5 -5 -5 -4 -4 -4 -4 -4 -3 -3 -2 -1 ------- Run | Yrd Mat Min Sub Scr Fac Ext Cet Arc Fac Upp Upp Zhi Pro Fac Upp Upp War Pro Res Res Acc Slots Evolved 18 | . . . . . 8 . . . 2 . . . . 2 . . . . 2 2 2 Power 2 | . . . . . 1 . . . . . . . . 1 . . . . . . . Propulsion 4 | . . . . . 4 . . . . . . . . . . . . . . . . Utility 10 | . . . . . 3 . . . 2 . . . . . . . . . 2 2 1 Weapon 2 | . . . . . . . . . . . . . . 1 . . . . . . 1 Parts Attached 255 | 6 1 . 8 6 17 29 7 3 1 4 . 2 4 6 . 1 2 2 26 56 74 Power 41 | 1 . . 1 1 1 4 1 2 . 1 . 1 1 . . . . 1 5 11 10 Engine 5 | 1 . . 1 1 1 1 . . . . . . . . . . . . . . . Core 7 | . . . . . . 3 . 1 . . . . . . . . . 1 . 2 . Reactor 29 | . . . . . . . 1 1 . 1 . 1 1 . . . . . 5 9 10 Propulsion 81 | 2 . . 3 3 7 15 . . 1 1 . . 2 1 . 1 . 1 7 20 17 Treads 15 | . . . . . . . . . . . . . . . . . . . . 5 10 Leg 40 | . . . . . 4 11 . . 1 1 . . 2 1 . 1 . 1 3 15 . Wheel 17 | 2 . . 3 1 . 4 . . . . . . . . . . . . . . 7 Hover 9 | . . . . 2 3 . . . . . . . . . . . . . 4 . . Flight . | . . . . . . . . . . . . . . . . . . . . . . Utility 79 | 1 1 . 2 1 6 5 4 1 . 2 . 1 1 3 . . . . 10 14 27 Device 40 | . . . 1 . 3 2 1 1 . . . . 1 1 . . . . 7 6 17 Storage 6 | 1 1 . . . 1 . . . . 1 . . . . . . . . . 1 1 Processor 13 | . . . . . . 1 . . . . . . . 1 . . . . 3 2 6 Hackware 3 | . . . . . 1 . 1 . . . . . . 1 . . . . . . . Protection 17 | . . . 1 1 1 2 2 . . 1 . 1 . . . . . . . 5 3 Artifact . | . . . . . . . . . . . . . . . . . . . . . . Weapon 54 | 2 . . 2 1 3 5 2 . . . . . . 2 . . 2 . 4 11 20 Energy Gun 17 | 2 . . 1 . . 1 1 . . . . . . . . . 1 . . 5 6 Energy Cannon 11 | . . . . . 1 . . . . . . . . 1 . . . . 1 3 5 Ballistic Gun 13 | . . . 1 . 1 2 1 . . . . . . 1 . . . . . 1 6 Ballistic Cannon 5 | . . . . . . . . . . . . . . . . . . . 2 1 2 Launcher 3 | . . . . . 1 1 . . . . . . . . . . . . . 1 . Special Weapon 1 | . . . . . . . . . . . . . . . . . . . 1 . . Impact Weapon 1 | . . . . 1 . . . . . . . . . . . . . . . . . Slashing Weapon 2 | . . . . . . 1 . . . . . . . . . . . . . . 1 Piercing Weapon 1 | . . . . . . . . . . . . . . . . . 1 . . . . Special Melee Weapon . | . . . . . . . . . . . . . . . . . . . . . . Unidentified Prototypes 17 | . . . . . . . 3 . . 2 . 2 . 2 . . 2 . 1 3 2 Corrupted Parts 4 | . . . . . . 1 2 1 . . . . . . . . . . . . . System Corruption 18 | . . . . . . 6 10 2 . . . . . . . . . . . . . Parts Lost 121 | . . . 5 . 9 10 . . . . . . . . . 1 . 4 21 8 63 Power 21 | . . . 1 . 1 3 . . . . . . . . . . . 2 3 4 7 Propulsion 37 | . . . 2 . 4 5 . . . . . . . . . 1 . . 10 . 15 Utility 38 | . . . 1 . 3 1 . . . . . . . . . . . . 6 2 25 Weapon 25 | . . . 1 . 1 1 . . . . . . . . . . . 2 2 2 16 Highest Loss Streak 28 | . . . 4 . 6 5 . . . . . . . . . 1 . 2 14 5 28 To Critical Strikes 2 | . . . 1 . . 1 . . . . . . . . . . . . . . . Average Backups 7 | . 2 3 2 7 4 4 9 10 9 9 9 9 10 9 10 9 9 8 5 8 7 Power . | . 1 1 . . . . 1 1 1 1 2 2 2 1 2 2 2 . . 1 . Propulsion 1 | . . . . 1 . . 3 3 3 4 2 1 1 1 1 . 1 1 . 1 . Utility 2 | . . 1 . 2 1 . 2 3 2 1 1 2 2 3 4 4 3 3 2 2 2 Weapon 2 | . 1 1 . 3 2 2 3 3 2 3 3 4 4 2 2 2 2 2 1 2 1 Tool/Special . | . . . . . . . . . . . . . . . . . . . . . . Unused Backups 11 | . . . . 1 . . 1 . 1 . . . 1 1 . . . . . 2 4 Power 2 | . . . . 1 . . 1 . . . . . . . . . . . . . . Propulsion . | . . . . . . . . . . . . . . . . . . . . . . Utility 3 | . . . . . . . . . . . . . . 1 . . . . . . 2 Weapon 4 | . . . . . . . . . 1 . . . 1 . . . . . . 2 . Tool/Special 2 | . . . . . . . . . . . . . . . . . . . . . 2 Average Slot Usage (%) 87 | . 92 100 95 77 61 72 99 100 91 94 100 100 100 99 99 100 99 94 88 82 78 Engine 2 | . 14 14 13 14 5 2 . . . . . . . . . . . . . . . Core 1 | . . . . . . 6 7 6 5 4 . . . . . . . 1 3 . . Reactor 8 | . . . . . . . 4 6 5 5 11 11 11 14 14 15 15 10 7 11 10 Treads 2 | . . . . . . . . . . . . . . . . . . . . . 10 Leg 16 | . . . . . 3 18 40 40 35 35 35 35 35 31 31 31 30 31 19 18 . Wheel 3 | . 28 28 24 14 . 5 . . . . . . . . . . . . . . . Hover 1 | . . . . 12 17 . . . . . . . . . . . . . 1 . . Device 10 | . . . 6 2 7 6 5 6 5 5 5 3 3 7 10 10 10 10 15 13 15 Storage 7 | . 21 28 14 14 12 9 6 6 5 5 11 11 11 7 5 5 5 5 4 4 4 Processor 7 | . . . . . . 2 6 6 5 . . . . 2 5 5 5 5 8 11 17 Hackware 2 | . . . . . 3 . 3 6 5 5 5 5 5 5 5 5 5 5 4 4 . Protection 7 | . . . 6 11 4 8 8 6 8 16 17 19 18 12 10 10 10 10 6 5 4 Energy Gun 4 | . 28 28 24 . . . 5 6 5 5 5 5 5 5 5 5 5 1 . 2 3 Energy Cannon 2 | . . . . . 3 . . . . . . . . 3 5 5 5 5 2 3 4 Ballistic Gun 2 | . . . 3 2 . 3 6 6 5 5 5 5 5 6 5 4 1 3 2 1 2 Peak Build Rating 196 | 6 7 7 11 13 39 68 92 89 98 113 113 114 113 130 124 124 125 126 142 177 196 Average Rating 105 | 4 6 7 8 11 29 41 83 88 93 102 112 112 110 126 123 123 124 113 117 129 162 On Entrance 78 | . 6 7 7 11 13 34 67 87 89 98 113 113 113 110 124 124 123 125 107 84 177 Avg Prop Armor Cover (%) 7 | . . . 5 5 2 . . . . . . . . . . . . . 11 5 11 Naked Turns . | . . . . . . . . . . . . . . . . . . . . . . Heaviest Build 122 | 13 23 23 21 24 37 43 62 63 70 82 82 82 74 97 88 88 92 92 102 105 122 Greatest Support 240 | 20 20 20 40 30 60 112 112 108 111 119 119 119 119 119 119 119 116 125 134 240 240 Greatest Overweight (x) 11 | . 1 1 6 2 2 11 . . . . . . . . . . . . 4 3 11 Average Overweight (x) . | . . 1 . . . . . . . . . . . . . . . . . . . Largest Inventory Capacity 10 | 8 10 10 10 10 10 10 10 10 10 10 10 10 10 10 10 10 10 10 10 10 10 Average Capacity 9 | 7 9 10 10 10 10 10 10 10 10 10 10 10 10 10 10 10 10 10 10 10 9 Most Carried 10 | 2 3 3 3 10 10 10 10 10 10 10 10 10 10 10 10 10 10 10 10 10 10 Average Carried 7 | . 2 3 1 7 4 4 9 10 9 9 9 9 9 9 10 9 9 9 6 9 9 Final Capacity 10 | 8 10 10 10 10 10 10 10 10 10 10 10 10 10 10 10 10 10 10 10 10 5 Final Carried 10 | 2 3 3 2 10 3 10 10 10 10 10 10 10 10 10 10 10 10 8 10 9 5 Class Distribution -------------------- 42% | Scavenger-Mutant 16% | Mutant 14% | Scavenger-Gunner 13% | Scavenger-Tank 10% | Scavenger-Skirmisher Dominant Class ---------------- Mutant | -10/Materials Mutant | -10/Mines Mutant | -10/Subcaves Mutant | -9/Scraptown Hacker-Mutant | -6/Factory Mutant | -6/Extension Scavenger-Mutant | -6/Cetus Scavenger-Mutant | -6/Archives Scavenger-Mutant | -5/Factory Scavenger-Mutant | -5/Upper Caves Scavenger-Mutant | -5/Upper Caves Scavenger-Mutant | -5/Zhirov Scavenger-Mutant | -4/Proximity Caves Scavenger-Tank | -4/Factory Scavenger-Skirmisher | -4/Upper Caves Scavenger-Skirmisher | -4/Upper Caves Scavenger-Mutant | -4/Warlord Scavenger-Skirmisher | -3/Proximity Caves Scavenger-Mutant | -3/Research Scavenger-Tank | -2/Research Scavenger-Gunner | -1/Access Resources | -11 -10 -10 -10 -9 -6 -6 -6 -6 -5 -5 -5 -5 -4 -4 -4 -4 -4 -3 -3 -2 -1 ----------- Run | Yrd Mat Min Sub Scr Fac Ext Cet Arc Fac Upp Upp Zhi Pro Fac Upp Upp War Pro Res Res Acc Matter Collected 6668 | 225 25 20 97 40 264 686 231 107 . 148 36 . 128 167 82 114 . 289 580 1021 2408 Remotely . | . . . . . . . . . . . . . . . . . . . . . . Salvage Created 13160 | . 25 . 167 . 500 819 156 . . 222 132 . 296 192 . 154 . 666 1175 1754 6902 Parts 542 | . 2 . 7 . 24 27 7 . . 12 6 . 11 6 . 3 . 19 58 56 304 Haulers Intercepted 1 | . . . . . . . . . . . . . . . . . . . . . 1 Recyclers Shooed 8 | . . . . . 2 1 . . . . . . . . . . . . . . 5 Parts Field Recycled . | . . . . . . . . . . . . . . . . . . . . . . Retrieved Matter . | . . . . . . . . . . . . . . . . . . . . . . Parts Self-Destructed 76 | . . . 6 . . . . . . 28 9 . 12 . 2 9 . 10 . . . Prevented . | . . . . . . . . . . . . . . . . . . . . . . Parts Restored . | . . . . . . . . . . . . . . . . . . . . . . Kills | -11 -10 -10 -10 -9 -6 -6 -6 -6 -5 -5 -5 -5 -4 -4 -4 -4 -4 -3 -3 -2 -1 ------- Run | Yrd Mat Min Sub Scr Fac Ext Cet Arc Fac Upp Upp Zhi Pro Fac Upp Upp War Pro Res Res Acc Combat Hostiles Destroyed 187 | . . . 4 . 9 14 2 . . 5 2 . 4 3 . 3 . 18 17 24 82 Melee 5 | . . . . . . 2 . . . . . . . . . . . . 3 . . Guns 85 | . . . 4 . . 6 2 . . 5 2 . 4 1 . 2 . 6 6 12 35 Cannons 60 | . . . . . 7 . . . . . . . . 2 . . . 3 7 7 34 AOE 29 | . . . . . 2 6 . . . . . . . . . 1 . 9 1 5 5 Classes Destroyed 22 | . 1 . 1 . 5 3 . . . . . . . . . . . 2 2 4 4 Worker 9 | . . . . . 1 . . . . . . . . . . . . . 1 . 7 Builder 12 | . . . . . . . . . . . . . . . . . . . 2 . 10 Tunneler 1 | . . . . . . . . . . . . . . . . . . . . . 1 Hauler 1 | . . . . . . . . . . . . . . . . . . . . . 1 Recycler 9 | . . . . . 1 2 . . . . . . . . . . . . 1 . 5 Operator 1 | . . . . . . . . . . . . . . . . . . . . . 1 Watcher 7 | . 1 . . . . . . . . . . . . . . . . . 1 . 5 Swarmer 23 | . . . . . 4 5 . . . 2 . . . . . 1 . 5 . . 6 Grunt 62 | . . . . . 4 6 . . . 2 . . 4 2 . 1 . 3 3 8 29 Brawler 3 | . . . . . . . . . . . . . . . . . . 1 . 1 1 Duelist 5 | . . . . . . . . . . . 1 . . . . . . 3 . . 1 Sentry 16 | . . . . . . 3 . . . . 1 . . 1 . 1 . 1 4 1 4 Demolisher 4 | . . . . . . . . . . . . . . . . . . . . 4 . Specialist 4 | . . . . . . . . . . . . . . . . . . 2 . . 2 Hunter 20 | . . . . . 1 . . . . 1 . . . . . . . 2 . 3 13 Programmer 34 | . . . . . . . . . . . . . . . . . . 1 9 2 22 Heavy 2 | . . . . . . . . . . . . . . . . . . . 1 . 1 Behemoth 3 | . . . . . . . . . . . . . . . . . . . . . 3 Cetus Guard 2 | . . . . . . . 2 . . . . . . . . . . . . . . Striker 2 | . . . . . . . . . . . . . . . . . . . . 2 . Executioner 3 | . . . . . . . . . . . . . . . . . . . . 3 . Subdweller 4 | . . . 4 . . . . . . . . . . . . . . . . . . Savage 1 | . . . . . . 1 . . . . . . . . . . . . . . . Butcher 1 | . . . . . . 1 . . . . . . . . . . . . . . . Guerrilla 2 | . . . . . . 2 . . . . . . . . . . . . . . . Knight 1 | . . . . . . . . . . . . . . . . . . . . 1 . Best Kill Streak 15 | . 1 . 1 . 4 5 2 . . 3 1 . 2 2 . 1 . 15 5 8 11 Combat Bots Only 15 | . . . 1 . 4 5 2 . . 3 1 . 2 2 . 1 . 15 4 8 7 Max Kills in Single Turn 4 | . 1 . 1 . 2 3 1 . . 1 1 . 1 1 . 1 . 4 1 2 3 Gunslinging 1 | . . . . . . . . . . . . . . . . . . . . . 1 Exploded 4 | . . . . . 2 2 . . . . . . . . . 1 . 4 1 2 1 Melee 1 | . . . . . . 1 . . . . . . . . . . . . 1 . . Uniques/NPCs Destroyed . | . . . . . . . . . . . . . . . . . . . . . . Combat | -11 -10 -10 -10 -9 -6 -6 -6 -6 -5 -5 -5 -5 -4 -4 -4 -4 -4 -3 -3 -2 -1 -------- Run | Yrd Mat Min Sub Scr Fac Ext Cet Arc Fac Upp Upp Zhi Pro Fac Upp Upp War Pro Res Res Acc Hostile Shots Fired 2173 | . . . 59 . 67 172 14 12 3 54 21 . 26 25 45 37 3 108 195 161 1171 Missed 635 | . . . 18 . 14 52 6 2 1 16 7 . 9 11 13 13 1 36 47 59 330 Hits 1538 | . . . 41 . 53 120 8 10 2 38 14 . 17 14 32 24 2 72 148 102 841 Melee 4 | . . . . . . . . . . 1 . . . . . . 1 . . . 2 Projectile 1534 | . . . 41 . 53 120 8 10 2 37 14 . 17 14 32 24 1 72 148 102 839 AOE 13 | . . . . . . . . . . . . . . . . . 1 . 1 11 . Critical Strikes 73 | . . . 1 . 2 2 . 1 . 3 . . . 3 2 . . 2 13 6 38 Actively Blocked 38 | . . . . . . . . . . . . . . . . . . 1 1 3 33 Part Disruptions 6 | . . . . . . . . . . . . . . . . . . 3 . . 3 Damage Taken 27695 | . . . 658 . 749 1153 144 183 25 694 225 . 255 238 822 312 51 1074 3190 2837 15085 Core 3021 | . . . 178 . 120 186 11 36 . 104 . . . 13 20 36 . 138 381 457 1341 Absorbed by Shields 249 | . . . . . 15 176 58 . . . . . . . . . . . . . . Reduced by Siege Mode 1165 | . . . . . . . . . . . . . . . . . . . . . 1165 Redirected to Shielding 405 | . . . . . 11 4 . . . . . . . 16 . . . 30 108 67 169 Ignored by Resistances 7589 | . . . 186 . 215 310 54 51 8 190 59 . 76 66 223 89 13 303 871 748 4127 Regen/Repaired (Parts) 507 | . . . . . . . . . . . . . . . . . 398 . . 109 . Core Remaining (%) 70 | 100 . . . 28 . . . 58 . . . . 89 . . . . 82 70 68 . Volleys Fired 618 | . 2 . 47 . 37 49 9 11 1 16 9 . 12 17 14 11 3 28 70 64 218 Largest 4 | . 2 . 2 . 2 2 2 2 1 2 2 . 2 3 3 3 1 3 2 3 4 Hottest 418 | . 90 . 90 . 115 113 113 115 35 115 115 . 115 205 205 206 60 186 132 249 418 Shots Fired 1381 | . 4 . 84 . 48 56 18 14 1 29 18 . 24 40 33 26 3 71 110 162 640 Gun 762 | . 4 . 84 . 6 31 18 14 1 29 18 . 24 29 20 15 3 36 34 93 303 Cannon 554 | . . . . . 37 8 . . . . . . . 11 13 8 . 28 75 63 311 Launcher 54 | . . . . . 5 17 . . . . . . . . . 3 . 7 . 6 16 Special 11 | . . . . . . . . . . . . . . . . . . . 1 . 10 Kinetic 476 | . . . 6 . 6 25 9 11 1 16 9 . 12 21 14 8 . 21 47 49 221 Thermal 794 | . 4 . 78 . 37 14 9 3 . 13 9 . 12 19 19 15 . 28 60 97 377 Explosive 54 | . . . . . 5 17 . . . . . . . . . 3 . 7 . 6 16 Electromagnetic 28 | . . . . . . . . . . . . . . . . . . . 2 10 16 Entropic 18 | . . . . . . . . . . . . . . . . . 3 15 . . . Robot Hit Streak 68 | . 4 . 23 . 39 68 15 8 . 7 7 . 14 7 18 11 . 18 58 50 47 Robot Miss Streak 9 | . . . 1 . 1 9 2 1 1 3 2 . 1 2 1 1 . 4 1 1 3 Penetration Max 1 | . . . . . . 1 . 1 . 1 . . . . . . . 1 1 1 1 Secondary Targets 5 | . . . . . . 1 . . . 1 1 . . . . . . . . . 2 Max Gunslinging Chain 1 | . . . . . . 1 . . . 1 1 . . . . . . . . . 1 Shots Hit Robots 1041 | . 4 . 64 . 44 44 17 12 . 21 12 . 21 26 30 14 . 52 108 124 448 Core Hits 549 | . 2 . 14 . 21 73 15 4 . 8 5 . 10 12 2 7 . 41 41 65 229 Critical Kills 31 | . . . . . . 2 2 . . 3 . . . . . . . 1 2 . 21 Critical Parts Destroyed 22 | . . . . . . . 1 1 . 2 . . 1 . . . . 2 5 . 10 Critical Strikes 71 | . . . 4 . . 2 3 1 . 5 . . 1 . 1 . . 4 9 . 41 Burn 4 | . . . 4 . . . . . . . . . . . . . . . . . . Meltdown 7 | . . . . . . . . . . . . . . . . . . . . . 7 Destroy 48 | . . . . . . 2 3 1 . 5 . . 1 . 1 . . 4 7 . 24 Blast 9 | . . . . . . . . . . . . . . . . . . . 1 . 8 Corrupt 2 | . . . . . . . . . . . . . . . . . . . . . 2 Sunder 1 | . . . . . . . . . . . . . . . . . . . 1 . . Melee Attacks 32 | . . . . . . 7 . . . . . . . . . . . 1 21 . 3 Thermal 3 | . . . . . . . . . . . . . . . . . . . . . 3 Impact 4 | . . . . . . 4 . . . . . . . . . . . . . . . Slashing 3 | . . . . . . 3 . . . . . . . . . . . . . . . Piercing . | . . . . . . . . . . . . . . . . . . . . . . Entropic 22 | . . . . . . . . . . . . . . . . . . 1 21 . . Sneak Attacks 3 | . . . . . . 3 . . . . . . . . . . . . . . . Combat Hostiles . | . . . . . . . . . . . . . . . . . . . . . . Follow-up Attacks 1 | . . . . . . 1 . . . . . . . . . . . . . . . Damage Inflicted 41224 | . 48 . 665 . 1486 2638 297 339 . 669 347 . 585 760 919 746 . 3448 5047 5317 17913 Guns 15798 | . 48 . 665 . 95 489 297 339 . 669 347 . 585 496 416 249 . 1241 1108 2040 6714 Cannons 17258 | . . . . . 1113 247 . . . . . . . 264 477 220 . 734 2475 1976 9752 Explosions 6599 | . . . . . 278 1534 . . . . . . . . 26 277 . 1473 319 1301 1391 Melee 1513 | . . . . . . 368 . . . . . . . . . . . . 1145 . . Ramming 56 | . . . . . . . . . . . . . . . . . . . . . 56 Kinetic 10100 | . . . . . 95 396 52 319 . 339 170 . 244 371 328 143 . 401 1632 904 4706 Thermal 23033 | . 48 . 665 . 1113 479 245 20 . 330 177 . 341 389 565 326 . 1388 2270 2980 11697 Explosive 5309 | . . . . . 278 1395 . . . . . . . . . 277 . 819 . 1301 1239 Electromagnetic 373 | . . . . . . . . . . . . . . . 26 . . . . 132 215 Impact 235 | . . . . . . 235 . . . . . . . . . . . . . . . Slashing 133 | . . . . . . 133 . . . . . . . . . . . . . . . Piercing . | . . . . . . . . . . . . . . . . . . . . . . Entropic 1985 | . . . . . . . . . . . . . . . . . . 840 1145 . . Highest Corruption 41 | . . . . . 1 11 21 23 . . . . . . . . . 2 13 1 41 Average Corruption 9 | . . . . . 1 4 18 21 . . . . . . . . . 1 9 1 13 Corruption Purged . | . . . . . . . . . . . . . . . . . . . . . . Corruption Blocked . | . . . . . . . . . . . . . . . . . . . . . . Effects 235 | . . . . . . 23 15 7 . . . . . . . . . 5 35 6 144 Message Errors 52 | . . . . . . 6 5 3 . . . . . . . . . 1 11 2 24 Matter Fused 48 | . . . . . . 5 6 1 . . . . . . . . . 3 7 1 25 Heat Flow Errors 19 | . . . . . . 2 1 . . . . . . . . . . . 3 2 11 Energy Discharges 26 | . . . . . . 3 . 1 . . . . . . . . . 1 4 . 17 Parts Rejected 7 | . . . . . . 1 . . . . . . . . . . . . 1 . 5 Parts Fused 4 | . . . . . . . 1 . . . . . . . . . . . 1 . 2 Data Loss (minor) 27 | . . . . . . 1 1 2 . . . . . . . . . . 3 . 20 Data Loss (major) 9 | . . . . . . 1 . . . . . . . . . . . . 1 1 6 Misfires 10 | . . . . . . 2 1 . . . . . . . . . . . 2 . 5 Alerts 2 | . . . . . . . . . . . . . . . . . . . . . 2 Misdirections 4 | . . . . . . . . . . . . . . . . . . . . . 4 Weapon Failures 27 | . . . . . . 2 . . . . . . . . . . . . 2 . 23 Overload Shots . | . . . . . . . . . . . . . . . . . . . . . . Overflow Damage 801 | . . . . . 6 77 . . . . . . . . . 51 . 82 333 58 194 Projectiles 292 | . . . . . . . . . . . . . . . . . . 13 103 12 164 Explosions 273 | . . . . . 6 8 . . . . . . . . . 51 . 69 64 46 29 Melee 236 | . . . . . . 69 . . . . . . . . . . . . 166 . 1 Knockbacks 23 | . . . . . . 2 . . . . . . . . . . . . . . 21 Impact 3 | . . . . . . 2 . . . . . . . . . . . . . . 1 Kinetic 18 | . . . . . . . . . . . . . . . . . . . . . 18 Secondary 2 | . . . . . . . . . . . . . . . . . . . . . 2 Self-Inflicted Damage 623 | . . . . . 55 158 . . . . . . . . . . . . 153 48 209 Shots 15 | . . . . . 2 5 . . . . . . . . . . . . 3 2 3 Rammed 4 | . . . . . . . . . . . . . . . . . . . . . 4 Targets Rammed 5 | . . . . . . . . . . . . . . . . . . . . . 5 Kicked . | . . . . . . . . . . . . . . . . . . . . . . Crushed 1 | . . . . . . . . . . . . . . . . . . . . . 1 Highest Temperature 509 | . 40 . . . 319 156 249 42 . 213 141 . 109 128 284 227 . 190 99 52 509 Average Temperature 91 | . 22 . . . 108 51 66 17 . 71 57 . 56 44 146 85 . 88 69 23 106 Received Heat Transfer 3800 | . . . 222 . 243 284 8 72 . 225 117 . 51 132 388 30 . 135 273 117 1503 Effects 8 | . . . . . . . . . . . . . . . 1 . . . . . 7 Shutdowns 4 | . . . . . . . . . . . . . . . . . . . . . 4 Energy Bleed 1 | . . . . . . . . . . . . . . . 1 . . . . . . Interference 3 | . . . . . . . . . . . . . . . . . . . . . 3 Siege Activations 12 | . . . . . . . . . . . . . . . . . . . . . 12 Total Turns 311 | . . . . . . . . . . . . . . . . . . . . . 311 Longest Duration 68 | . . . . . . . . . . . . . . . . . . . . . 68 Martial Activations . | . . . . . . . . . . . . . . . . . . . . . . Shielding Activations . | . . . . . . . . . . . . . . . . . . . . . . Robots Disrupted 1 | . . . . . . . . . . . . . . . . . . . . . 1 Combat Hostiles 1 | . . . . . . . . . . . . . . . . . . . . . 1 Robots Corrupted 2 | . . . . . . 1 . . . . . . . . . . . . . . 1 Combat Hostiles . | . . . . . . . . . . . . . . . . . . . . . . Parts Fried 5 | . . . . . . 3 . . . . . . . . . . . . . 1 1 Impact Corruptions 3 | . . . . . . 2 . . . . . . . . . . . . . . 1 Robots Melted 7 | . . . . . . . . . . . . . . . . . . . . . 7 Combat Hostiles 7 | . . . . . . . . . . . . . . . . . . . . . 7 Parts Melted 49 | . . . 3 . 2 . 1 . . . . . 1 . . . . . . 7 35 Heat Transferred 20092 | . 124 . 2033 . 1369 596 518 37 . 370 222 . 444 148 148 111 . 400 350 2627 10595 Parts Sabotaged 7 | . . . . . . . . . . . . . . . . . 2 . . . 5 Parts Stolen . | . . . . . . . . . . . . . . . . . . . . . . Parts Stripped . | . . . . . . . . . . . . . . . . . . . . . . Power Chain Reactions 9 | . . . . . . . . . . . . . . . 1 . . 3 3 . 2 Alert | -11 -10 -10 -10 -9 -6 -6 -6 -6 -5 -5 -5 -5 -4 -4 -4 -4 -4 -3 -3 -2 -1 ------- Run | Yrd Mat Min Sub Scr Fac Ext Cet Arc Fac Upp Upp Zhi Pro Fac Upp Upp War Pro Res Res Acc Maximum Alert Level 4 | . . . . . . 1 . . . . . . . 2 . . . . . 1 4 Low Security (%) 76 | 100 100 100 . . 100 94 100 100 100 . . . . . . . . . 100 83 54 Level 1 10 | . . . . . . 5 . . . . . . . 36 . . . . . 16 15 Level 2 3 | . . . . . . . . . . . . . . 63 . . . . . . 2 Level 3 9 | . . . . . . . . . . . . . . . . . . . . . 26 Level 4 . | . . . . . . . . . . . . . . . . . . . . . 1 Level 5 . | . . . . . . . . . . . . . . . . . . . . . . High Security . | . . . . . . . . . . . . . . . . . . . . . . Max Security . | . . . . . . . . . . . . . . . . . . . . . . Peak Influence 1146 | . 7 . . . 120 245 183 129 45 . . . . 520 . . . . 109 290 1146 Initial 300 | . . . . . . 35 119 16 20 . . . . 300 . . . . 65 5 120 Average 171 | . . . . . 66 31 120 81 13 . . . . 421 . . . . 24 54 364 Influence Increases 7821 | . 13 . . . 316 647 89 133 45 495 135 . 109 670 55 165 62 380 694 709 3104 Destroy 0b10 Robot/C 4460 | . . . . . 180 400 80 80 20 300 80 . 80 180 40 140 60 360 340 480 1640 Destroy 0b10 Robot/NC 240 | . 5 . . . 10 25 5 . . . . . 10 10 . . . . 25 . 150 Destroy Leader 772 | . 2 . . . 40 54 . . 10 30 10 . 10 32 10 10 . 20 92 100 352 Allied During Kill 396 | . . . . . . 40 4 40 15 165 45 . 9 53 5 15 2 . . . 3 Successful Hack 97 | . 6 . . . . 6 . . . . . . . 16 . . . . 51 . 18 Select Force Hacks 20 | . . . . . 20 . . . . . . . . . . . . . . . . Disable Machine 180 | . . . . . 18 27 . 9 . . . . . 9 . . . . . . 117 Anti-Garrison Action 200 | . . . . . . . . . . . . . . . . . . . . . 200 Destroy Structure 931 | . . . . . 33 65 . 4 . . . . . 70 . . . . 96 114 549 Advance Influence 300 | . . . . . . . . . . . . . . 300 . . . . . . . Partial Spotted 15 | . . . . . . . . . . . . . . . . . . . 15 . . Lose Combat Pursuer 210 | . . . . . 15 30 . . . . . . . . . . . . 75 15 75 Influence Decreases 6947 | . 13 . . . 231 486 287 112 89 185 304 166 107 192 385 314 63 270 792 491 2460 Entered New Map 953 | . . . . . . 50 127 32 49 12 94 166 . 2 215 43 1 . 45 7 110 Time Decay 4753 | . 13 . . . 131 320 160 80 40 153 210 . 107 190 150 261 62 230 535 451 1660 Lost Part 1061 | . . . . . 90 56 . . . . . . . . . 10 . 40 202 33 630 Lost Ally 180 | . . . . . 10 60 . . . 20 . . . . 20 . . . 10 . 60 Squads Dispatched 37 | . . . . . 5 . . . 1 . . . . 2 . . . 1 5 . 23 Investigation 6 | . . . . . 1 . . . . . . . . 1 . . . . . . 4 Extermination 10 | . . . . . . . . . . . . . . 1 . . . . 3 . 6 Reinforcement 13 | . . . . . 1 . . . 1 . . . . . . . . . 2 . 9 Assault 5 | . . . . . . . . . . . . . . . . . . 1 . . 4 Garrison 3 | . . . . . 3 . . . . . . . . . . . . . . . . Intercept . | . . . . . . . . . . . . . . . . . . . . . . Searches Triggered . | . . . . . . . . . . . . . . . . . . . . . . Construction Impeded 2 | . . . . . 1 . . . . . . . . . . . . . . . 1 Haulers Reinforced 4 | . . . . . . . . . . . . . . . . . . . . . 4 Active Scanning Responses . | . . . . . . . . . . . . . . . . . . . . . . Cargo Convoy Interrupts . | . . . . . . . . . . . . . . . . . . . . . . Stealth | -11 -10 -10 -10 -9 -6 -6 -6 -6 -5 -5 -5 -5 -4 -4 -4 -4 -4 -3 -3 -2 -1 --------- Run | Yrd Mat Min Sub Scr Fac Ext Cet Arc Fac Upp Upp Zhi Pro Fac Upp Upp War Pro Res Res Acc Distress Signals 24 | . . . . . 2 1 1 . . . . . . . . . . . 1 9 10 Communications Jammed . | . . . . . . . . . . . . . . . . . . . . . . Distress Signals . | . . . . . . . . . . . . . . . . . . . . . . Times Spotted 322 | . 4 . 5 . 13 24 6 6 2 14 4 . 5 11 2 7 4 18 33 43 121 Peak Tracking Total 9 | . 3 . 2 . 5 9 5 2 1 5 3 . 2 4 1 4 4 9 5 7 8 Tactical Retreats 11 | . . . . . 1 1 . . . . . . . . . . . . 5 1 3 Traps | -11 -10 -10 -10 -9 -6 -6 -6 -6 -5 -5 -5 -5 -4 -4 -4 -4 -4 -3 -3 -2 -1 ------- Run | Yrd Mat Min Sub Scr Fac Ext Cet Arc Fac Upp Upp Zhi Pro Fac Upp Upp War Pro Res Res Acc Traps Triggered 5 | . . . . . 1 2 . . . . . . . . . . . . . . 2 Indirectly . | . . . . . . . . . . . . . . . . . . . . . . Trap Hack Attempts . | . . . . . . . . . . . . . . . . . . . . . . Triggered . | . . . . . . . . . . . . . . . . . . . . . . Disarmed . | . . . . . . . . . . . . . . . . . . . . . . Reprogrammed . | . . . . . . . . . . . . . . . . . . . . . . Reused . | . . . . . . . . . . . . . . . . . . . . . . Traps Extracted . | . . . . . . . . . . . . . . . . . . . . . . Installed . | . . . . . . . . . . . . . . . . . . . . . . Triggered . | . . . . . . . . . . . . . . . . . . . . . . Objects Rigged 8 | . . . . . 8 . . . . . . . . . . . . . . . . Machines | -11 -10 -10 -10 -9 -6 -6 -6 -6 -5 -5 -5 -5 -4 -4 -4 -4 -4 -3 -3 -2 -1 ---------- Run | Yrd Mat Min Sub Scr Fac Ext Cet Arc Fac Upp Upp Zhi Pro Fac Upp Upp War Pro Res Res Acc Machines Disabled 21 | . . . . . 2 3 . 1 . . . . . 1 . . . 1 . . 13 Max in Single Turn 2 | . . . . . 1 2 . 1 . . . . . 1 . . . 1 . . 2 Garrison Access 4 | . . . . . . . . . . . . . . . . . . . . 2 2 Energy Cycler 1 | . . . . . . 1 . . . . . . . . . . . . . . . Machines Repaired . | . . . . . . . . . . . . . . . . . . . . . . Machines Dismantled . | . . . . . . . . . . . . . . . . . . . . . . Machines Sabotaged . | . . . . . . . . . . . . . . . . . . . . . . Overloaded Fab Kills . | . . . . . . . . . . . . . . . . . . . . . . Hacking | -11 -10 -10 -10 -9 -6 -6 -6 -6 -5 -5 -5 -5 -4 -4 -4 -4 -4 -3 -3 -2 -1 --------- Run | Yrd Mat Min Sub Scr Fac Ext Cet Arc Fac Upp Upp Zhi Pro Fac Upp Upp War Pro Res Res Acc Machines Accessed 38 | . 2 . 1 1 4 6 1 . 1 . 1 3 . 3 . . 2 . 4 . 9 Terminals 22 | . 2 . . . 2 6 1 . 1 . . . . 2 . . . . 1 . 7 Fabricators 3 | . . . . . 2 . . . . . . . . . . . . . . . 1 Repair Stations . | . . . . . . . . . . . . . . . . . . . . . . Recycling Units 1 | . . . . . . . . . . . . . . 1 . . . . . . . Scanalyzers 2 | . . . . . . . . . . . . . . . . . . . 2 . . Garrison Access 2 | . . . . . . . . . . . . . . . . . . . 1 . 1 Total Hacks 90 | . 4 . 4 2 6 14 3 . 2 . 1 13 . 14 . . 2 . 7 . 18 Successful 51 | . 1 . 4 2 5 4 1 . 1 . 1 13 . 9 . . 2 . 4 . 4 Failed 39 | . 3 . . . 1 10 2 . 1 . . . . 5 . . . . 3 . 14 Catastrophic 13 | . 3 . . . . 3 1 . 1 . . . . . . . . . 1 . 4 Database Lockouts . | . . . . . . . . . . . . . . . . . . . . . . Manual 31 | . . . . . 3 3 1 . 1 . . . . 9 . . . 1 2 . 11 Terminals 46 | . 4 . . . 3 14 3 . 2 . . . . 4 . . . . 2 . 14 Fabricators 6 | . . . . . 3 . . . . . . . . . . . . . . . 3 Repair Stations . | . . . . . . . . . . . . . . . . . . . . . . Recycling Units 10 | . . . . . . . . . . . . . . 10 . . . . . . . Scanalyzers 4 | . . . . . . . . . . . . . . . . . . . 4 . . Garrison Access 2 | . . . . . . . . . . . . . . . . . . . 1 . 1 Terminal Hacks 34 | . 1 . 4 2 2 4 1 . 1 . 1 13 . 1 . . 2 . 1 . 1 Record 11 | . . . 4 2 . . . . . . . 5 . . . . . . . . . Robot Analysis 4 | . . . . . . . . . . . . 4 . . . . . . . . . Prototype ID Bank 4 | . . . . . . . . . . . . 4 . . . . . . . . . Open Door 7 | . . . . . . 3 1 . . . 1 . . . . . 2 . . . . Branch Access Points 3 | . 1 . . . . . . . . . . . . 1 . . . . 1 . . Alert Level 5 | . . . . . 2 1 . . 1 . . . . . . . . . . . 1 Fabricator Hacks 3 | . . . . . 1 . . . . . . . . . . . . . . . 2 Network Status 1 | . . . . . 1 . . . . . . . . . . . . . . . . Load Schematic 1 | . . . . . . . . . . . . . . . . . . . . . 1 Build 1 | . . . . . . . . . . . . . . . . . . . . . 1 Repair Station Hacks . | . . . . . . . . . . . . . . . . . . . . . . Recycling Unit Hacks 3 | . . . . . . . . . . . . . . 3 . . . . . . . Report Inventory 1 | . . . . . . . . . . . . . . 1 . . . . . . . Retrieve Matter 1 | . . . . . . . . . . . . . . 1 . . . . . . . Retrieve Components 1 | . . . . . . . . . . . . . . 1 . . . . . . . Scanalyzer 2 | . . . . . . . . . . . . . . . . . . . 2 . . Insert Component 1 | . . . . . . . . . . . . . . . . . . . 1 . . Retrieve Study 1 | . . . . . . . . . . . . . . . . . . . 1 . . Garrison Access Hacks . | . . . . . . . . . . . . . . . . . . . . . . Unauthorized Hacks 8 | . . . . . 2 . . . . . . . . 4 . . . . 1 . 1 Terminals 2 | . . . . . 1 . . . . . . . . . . . . . 1 . . Assimilate 1 | . . . . . . . . . . . . . . . . . . . 1 . . Detonate 1 | . . . . . 1 . . . . . . . . . . . . . . . . Fabricators 1 | . . . . . 1 . . . . . . . . . . . . . . . . Download 1 | . . . . . 1 . . . . . . . . . . . . . . . . Repair Stations . | . . . . . . . . . . . . . . . . . . . . . . Recycling Units 4 | . . . . . . . . . . . . . . 4 . . . . . . . Monitor 1 | . . . . . . . . . . . . . . 1 . . . . . . . Reject 1 | . . . . . . . . . . . . . . 1 . . . . . . . Recyclers 1 | . . . . . . . . . . . . . . 1 . . . . . . . Mask 1 | . . . . . . . . . . . . . . 1 . . . . . . . Scanalyzers . | . . . . . . . . . . . . . . . . . . . . . . Garrison Access 1 | . . . . . . . . . . . . . . . . . . . . . 1 Jam 1 | . . . . . . . . . . . . . . . . . . . . . 1 Data Cores Recovered 1 | . . . . . . . . . . . . . . . . . . . . . 1 Used . | . . . . . . . . . . . . . . . . . . . . . . Hacking Detections 25 | . 1 . . . 2 5 1 . 1 . . . . 3 . . . . 4 . 8 Full Trace Events 4 | . . . . . . . . . . . . . . 1 . . . . . . 3 Feedback Events 1 | . . . . . . . . . . . . . . . . . . . . . 1 Hackware Fried 1 | . . . . . . . . . . . . . . . . . . . . . 1 Feedback Blocked . | . . . . . . . . . . . . . . . . . . . . . . Robot Schematics Acquired 1 | . . . . . 1 . . . . . . . . . . . . . . . . Robots Built 3 | . . . . . . . . . . . . . . . . . . . . . 3 Authchips . | . . . . . . . . . . . . . . . . . . . . . . Time 50 | . . . . . . . . . . . . . . . . . . . . . 50 Total Robot Build Rating 15 | . . . . . . . . . . . . . . . . . . . . . 15 Part Schematics Acquired . | . . . . . . . . . . . . . . . . . . . . . . Parts Built . | . . . . . . . . . . . . . . . . . . . . . . Authchips . | . . . . . . . . . . . . . . . . . . . . . . Time . | . . . . . . . . . . . . . . . . . . . . . . Total Part Build Rating . | . . . . . . . . . . . . . . . . . . . . . . Part Studies Acquired 1 | . . . . . . . . . . . . . . . . . . . 1 . . Parts Repaired . | . . . . . . . . . . . . . . . . . . . . . . Time . | . . . . . . . . . . . . . . . . . . . . . . Parts Recycled . | . . . . . . . . . . . . . . . . . . . . . . Recycled Matter . | . . . . . . . . . . . . . . . . . . . . . . Retrieved Matter . | . . . . . . . . . . . . . . . . . . . . . . Retrieved Components 2 | . . . . . . . . . . . . . . 2 . . . . . . . Parts Scanalyzed 1 | . . . . . . . . . . . . . . . . . . . 1 . . Part Schematics Acquired . | . . . . . . . . . . . . . . . . . . . . . . Parts Damaged . | . . . . . . . . . . . . . . . . . . . . . . Bothacking | -11 -10 -10 -10 -9 -6 -6 -6 -6 -5 -5 -5 -5 -4 -4 -4 -4 -4 -3 -3 -2 -1 ------------ Run | Yrd Mat Min Sub Scr Fac Ext Cet Arc Fac Upp Upp Zhi Pro Fac Upp Upp War Pro Res Res Acc Used RIF Installer . | . . . . . . . . . . . . . . . . . . . . . . Robots Hacked . | . . . . . . . . . . . . . . . . . . . . . . Non-combat . | . . . . . . . . . . . . . . . . . . . . . . Combat . | . . . . . . . . . . . . . . . . . . . . . . Robot Hacks Applied . | . . . . . . . . . . . . . . . . . . . . . . Relay Couplers Released 10 | . . . . . . . . . . . . . . . . . . . . . 10 Machine Destruction 2 | . . . . . . . . . . . . . . . . . . . . . 2 Programmers 8 | . . . . . . . . . . . . . . . . . . . . . 8 Fabnet Peak Effective % . | . . . . . . . . . . . . . . . . . . . . . . Robots Rewired 5 | . . . . . 1 4 . . . . . . . . . . . . . . . Allies Hacked . | . . . . . . . . . . . . . . . . . . . . . . Hacks Repelled . | . . . . . . . . . . . . . . . . . . . . . . Allies | -11 -10 -10 -10 -9 -6 -6 -6 -6 -5 -5 -5 -5 -4 -4 -4 -4 -4 -3 -3 -2 -1 -------- Run | Yrd Mat Min Sub Scr Fac Ext Cet Arc Fac Upp Upp Zhi Pro Fac Upp Upp War Pro Res Res Acc Total Allies 19 | . . . . . 1 9 5 . . . . . . . . . . . 1 . 3 Largest Group 8 | . . . . . 1 8 6 6 5 5 4 4 4 2 2 1 1 . 1 . 3 Highest-Rated Group 632 | . . . . . 29 350 632 632 480 480 384 384 384 192 185 89 89 . 45 . 87 Highest-Rated Ally 159 | . . . . . 29 159 159 152 96 96 96 96 96 96 96 89 89 . 45 . 29 Total Orders . | . . . . . . . . . . . . . . . . . . . . . . Ally Attacks 239 | . . . . . 2 44 11 28 1 51 12 . 16 30 19 6 10 . . . 9 Total Damage 7905 | . . . . . . 1050 350 1332 50 2107 350 . 321 1212 632 191 214 . . . 96 Kills 48 | . . . . . . 9 3 4 1 10 2 . 2 8 2 4 3 . . . . Allies Corrupted 1 | . . . . . . 1 . . . . . . . . . . . . . . . Allies Melted 1 | . . . . . . . . . . . . . . . . . . . . 1 . Intel | -11 -10 -10 -10 -9 -6 -6 -6 -6 -5 -5 -5 -5 -4 -4 -4 -4 -4 -3 -3 -2 -1 ------- Run | Yrd Mat Min Sub Scr Fac Ext Cet Arc Fac Upp Upp Zhi Pro Fac Upp Upp War Pro Res Res Acc Active Infowar (turns) 8234 | . . . 479 112 152 523 11 . . . . . . 175 300 562 675 549 1632 687 2377 Optics 2105 | . . . 479 112 . . . . . . . . . . . . . . 827 687 . Sensors 4150 | . . . . . 116 . . . . . . . . 175 300 562 675 549 805 . 968 Terrain 539 | . . . . . . 523 11 . . . . . . . . . . . . . 5 Structural 2001 | . . . . . 152 . . . . . . . . . . . . . . . 1849 Robot Analysis Total 4 | . . . . . . . . . . . . 4 . . . . . . . . . Derelict Logs Recovered 8 | . . 1 . 3 . . . . . 1 1 . . . 1 1 . . . . . Drone Launches . | . . . . . . . . . . . . . . . . . . . . . . Drone Recoveries . | . . . . . . . . . . . . . . . . . . . . . . Exploration | -11 -10 -10 -10 -9 -6 -6 -6 -6 -5 -5 -5 -5 -4 -4 -4 -4 -4 -3 -3 -2 -1 ------------- Run | Yrd Mat Min Sub Scr Fac Ext Cet Arc Fac Upp Upp Zhi Pro Fac Upp Upp War Pro Res Res Acc Turns Passed 14489 | 45 147 154 988 722 346 1014 327 160 175 344 436 184 248 387 300 562 675 549 1659 1741 3326 Spaces Moved 8515 | 46 159 163 800 645 282 631 110 100 138 240 325 139 159 260 211 432 377 294 809 965 1230 Core 42 | 8 . . 11 . . 5 . . . . . . . . . . . . . . 18 Treads 1197 | . . . . . . . . . . . . . . . . . . . . 20 1177 Legs 4981 | . . . . . 35 434 110 100 138 240 325 139 159 260 211 432 377 294 782 945 . Wheels 1736 | 38 159 163 789 360 . 192 . . . . . . . . . . . . . . 35 Hover 559 | . . . . 285 247 . . . . . . . . . . . . . 27 . . Flight . | . . . . . . . . . . . . . . . . . . . . . . Fastest Speed 44 | 50 80 95 95 95 44 100 120 120 120 120 120 120 120 120 120 120 120 120 112 109 50 Average Speed 124 | 74 87 95 104 108 75 119 120 120 120 120 120 120 120 120 120 120 120 120 147 125 164 Slowest Speed 600 | 80 95 95 350 120 190 600 120 120 120 120 120 120 120 120 120 120 120 120 330 330 600 Overloaded Moves . | . . . . . . . . . . . . . . . . . . . . . . Propulsion Burnouts . | . . . . . . . . . . . . . . . . . . . . . . Robots Hopped . | . . . . . . . . . . . . . . . . . . . . . . Potential Cave-ins 14 | . . . . . . 7 . . . . . . . . . . 6 . . . 1 Cave-ins Triggered 1 | . . . . . . 1 . . . . . . . . . . . . . . . Exploration Rate (%) 39 | 3 30 27 37 53 11 69 57 63 4 45 51 60 30 9 40 70 65 54 25 37 34 Regions Visited 21 Branch Regions 14 Pre-discovered Areas 6 | . . 1 . 1 . . . . . 1 . 3 . . . . . . . . . Known Exits Taken 13 | . 1 . . . 1 1 . 1 1 . . . 1 1 1 1 1 1 1 1 . Unknown Exits Taken 8 | 1 . 1 1 1 . . 1 . . 1 1 1 . . . . . . . . . Scrap Searched 14 | . . 1 . 4 . . . . . . 2 . . . 2 1 . 4 . . . Spaces Dug 106 | . . . . . . 75 . . . . . . . . . . 3 . 13 . 15 Terrain Destroyed 663 | . . . . . 29 148 . 3 . 7 8 . 5 6 6 20 9 67 49 60 246 Melee 7 | . . . . . . . . . . . . . . . . . . . 7 . . Projectile 149 | . . . . . . . . 3 . 7 8 . 5 6 6 3 9 11 15 22 54 AOE 507 | . . . . . 29 148 . . . . . . . . . 17 . 56 27 38 192 Terrain Rammed . | . . . . . . . . . . . . . . . . . . . . . . Walls Destroyed . | . . . . . . . . . . . . . . . . . . . . . . Machines Disabled . | . . . . . . . . . . . . . . . . . . . . . . Actions | -11 -10 -10 -10 -9 -6 -6 -6 -6 -5 -5 -5 -5 -4 -4 -4 -4 -4 -3 -3 -2 -1 --------- Run | Yrd Mat Min Sub Scr Fac Ext Cet Arc Fac Upp Upp Zhi Pro Fac Upp Upp War Pro Res Res Acc Total 11125 | 53 162 162 863 674 367 813 287 127 146 266 354 156 194 300 226 451 596 423 1127 1362 2016 Wait 1405 | . . . 3 . 11 37 152 12 4 5 17 9 15 6 1 5 209 91 178 217 433 Move 8494 | 45 158 162 799 644 281 630 109 99 137 239 324 138 158 259 210 431 376 293 808 964 1230 Hop . | . . . . . . . . . . . . . . . . . . . . . . Pick Up 54 | 2 1 . 3 11 1 9 2 . 1 . 2 1 1 4 . . . 1 6 2 7 Fast Attach 189 | 6 1 . 3 4 8 22 5 . . 2 . 4 . 3 1 . 4 1 20 37 68 Attach 55 | . . . 4 2 13 5 1 . 1 1 . . . 2 . 1 1 2 7 4 11 Detach 21 | . . . . 4 5 1 . . . . . . . 1 . . 1 . 3 1 5 Swap 73 | . . . 2 . . 8 2 3 1 1 . . 4 2 . 3 . 3 6 27 11 Drop 135 | . . . 2 9 2 11 7 2 1 2 2 4 4 6 . . 2 3 8 45 25 Fire 618 | . 2 . 47 . 37 49 9 11 1 16 9 . 12 17 14 11 3 28 70 64 218 Melee 31 | . . . . . . 6 . . . . . . . . . . . 1 21 . 3 Ram . | . . . . . . . . . . . . . . . . . . . . . . Kick . | . . . . . . . . . . . . . . . . . . . . . . Crush 5 | . . . . . . . . . . . . . . . . . . . . . 5 Escape Stasis 10 | . . . . . 6 4 . . . . . . . . . . . . . . . Rewire 35 | . . . . . 3 31 . . . . . . . . . . . . . 1 . Trap . | . . . . . . . . . . . . . . . . . . . . . . Miscellaneous . | . . . . . . . . . . . . . . . . . . . . . . Route ------- -11/Scrapyard -10/Materials (discovered 2 exits: *Min x2) -10/Mines -10/Subcaves -9/Scraptown -6/Factory (discovered 8 exits: Fac x4 / *Low x2 / *Ext x2) -6/Extension (discovered 2 exits: *Fac / *Cet) -6/Cetus -6/Archives (discovered 2 exits: *Fac / *Hub) -5/Factory (discovered 2 exits: *Fac / *Upp) -5/Upper Caves -5/Upper Caves (discovered 2 exits: Fac / *Zhi) -5/Zhirov -4/Proximity Caves -4/Factory (discovered 4 exits: *Res / *Upp x2 / Arm) -4/Upper Caves -4/Upper Caves -4/Warlord -3/Proximity Caves -3/Research (discovered 4 exits: *Res x2 / Tes x2) -2/Research -1/Access (discovered 1 exit: [*Sur]) History --------- Turn | Location | Event 29 | -11/Scrapyard | Discovered new exit (range 15) 46 | -11/Scrapyard | Entered Materials 77 | -10/Materials | Identified exit to Mines 193 | -10/Materials | Entered Mines 305 | -10/Mines | Build established: Mutant 336 | -10/Mines | Discovered new exit (range 10) 347 | -10/Mines | Entered Subcaves 348 | -10/Subcaves | Approached by a straggling Scientist 492 | -10/Subcaves | A swath of the cavern ceiling suddenly collapsed 575 | -10/Subcaves | Visited Clippyterm 578 | -10/Subcaves | Learned 40 Factory zone layouts 578 | -10/Subcaves | Learned Factory garrison access intel 852 | -10/Subcaves | Lost 4 parts (2n1u1w) 911 | -10/Subcaves | Core integrity fell below 50% 1331 | -10/Subcaves | Scientist uncovered a shortcut to Scraptown 1335 | -10/Subcaves | Entered Scraptown 1401 | -9/Scraptown | Build established: Scavenger-Mutant 1530 | -9/Scraptown | Scanned Subdweller tech in exchange for log data 1532 | -9/Scraptown | Learned location of Armory (-4) 1533 | -9/Scraptown | Learned location of 1 exit from Research 1534 | -9/Scraptown | Learned Factory emergency access door positions 1560 | -9/Scraptown | Visited Supply Room 1615 | -9/Scraptown | Visited Bundlers 1686 | -9/Scraptown | Visited Shadow of the Wyrm 1709 | -9/Scraptown | Visited Junk Repository 1746 | -9/Scraptown | Build established: Mutant 1942 | -9/Scraptown | Heard Great Nut preacher, LISTEN AND RECITE! 1970 | -9/Scraptown | Visited The Evicted 1992 | -9/Scraptown | Visited Cave Peace 2049 | -9/Scraptown | Discovered new exit (range 7) 2057 | -9/Scraptown | Entered Factory 2057 | -6/Factory | Evolved 8 slots: Power x1, Propulsion x4, Utility x3 2058 | -6/Factory | Identified exit to Lower Caves 2058 | -6/Factory | Identified exit to Extension 2058 | -6/Factory | Identified exit to Factory 2060 | -6/Factory | Loaded intel: 4 garrison access locations 2183 | -6/Factory | Garrison activated, responded to threat 2259 | -6/Factory | Lost 6 parts (3n2u1w) 2362 | -6/Factory | Lost 3 parts (1p1n1u) 2403 | -6/Factory | Entered Extension 2603 | -6/Extension | Disrupted transfer network 2611 | -6/Extension | Lost 5 parts (1p4n) 2718 | -6/Extension | Rescued A7 2839 | -6/Extension | Rescued a captive Derelict 2839 | -6/Extension | Rescued a captive Derelict 2854 | -6/Extension | Rescued a captive Derelict 2959 | -6/Extension | Crushed by falling debris 2976 | -6/Extension | Murdered 3 allies 2990 | -6/Extension | Lost 3 parts (1p1n1u) 3053 | -6/Extension | Energy Cycler disabled 3054 | -6/Extension | Rescued a captive Derelict 3054 | -6/Extension | Rescued a captive Derelict 3056 | -6/Extension | Rescued a captive Derelict 3111 | -6/Extension | System corruption reached 10% 3320 | -6/Extension | Discovered exit to Factory (range 10) 3322 | -6/Extension | Discovered new exit (range 6) 3330 | -6/Extension | Identified exit to Cetus 3417 | -6/Extension | Entered Cetus 3417 | -6/Cetus | Accompanied by 1 ally (A7) 3422 | -6/Cetus | Acquired a Cetus Manufacturing Module code from A7 3436 | -6/Cetus | Spotted Cetus Guard 3436 | -6/Cetus | Spotted Cetus Guard 3439 | -6/Cetus | Spotted Cetus Guard 3439 | -6/Cetus | Spotted Cetus Guard 3442 | -6/Cetus | Destroyed Cetus Guard 3445 | -6/Cetus | Destroyed Cetus Guard 3461 | -6/Cetus | Allies destroyed Cetus Guard 3463 | -6/Cetus | Allies destroyed Cetus Guard 3546 | -6/Cetus | Escorted A7 to Cetus Mainframe 3556 | -6/Cetus | Started Cetus Manufacturing Module 3581 | -6/Cetus | Manufactured an Enhanced Grunt 3606 | -6/Cetus | Manufactured an Enhanced Grunt 3631 | -6/Cetus | Manufactured an Enhanced Grunt 3656 | -6/Cetus | Manufactured an Enhanced Grunt 3681 | -6/Cetus | Manufactured an Enhanced Grunt 3717 | -6/Cetus | Discovered new exit (range 16) 3732 | -6/Cetus | Build established: Scavenger-Mutant 3744 | -6/Cetus | Entered Archives 3744 | -6/Archives | Accompanied by 6 allies (A7) 3749 | -6/Archives | Received a hacking code to weaken MAIN.C 3805 | -6/Archives | Discovered exit to Factory (range 16) 3823 | -6/Archives | Discovered new exit (range 16) 3854 | -6/Archives | Identified exit to Hub_04(d) 3904 | -6/Archives | Entered Factory 3904 | -5/Factory | Accompanied by 5 allies 3904 | -5/Factory | Evolved 2 slots: Utility x2 4042 | -5/Factory | Discovered new exit (range 13) 4052 | -5/Factory | Discovered new exit (range 16) 4057 | -5/Factory | Identified exit to Factory 4069 | -5/Factory | Identified exit to Upper Caves 4079 | -5/Factory | Entered Upper Caves 4079 | -5/Upper Caves | Accompanied by 5 allies 4354 | -5/Upper Caves | Attracted the attention of an 0b10 checkpoint 4393 | -5/Upper Caves | Discovered new exit (range 12) 4423 | -5/Upper Caves | Entered another Upper Caves area 4423 | -5/Upper Caves | Accompanied by 4 allies 4687 | -5/Upper Caves | Attracted the attention of an 0b10 checkpoint 4830 | -5/Upper Caves | Discovered new exit (range 15) 4859 | -5/Upper Caves | Entered Zhirov 4859 | -5/Zhirov | Accompanied by 4 allies 4859 | -5/Zhirov | Discovered new exit (range 3) 4881 | -5/Zhirov | Met Zhirov 4903 | -5/Zhirov | Learned location of Quarantine (-2) 4903 | -5/Zhirov | Learned location of Testing (-3) 4903 | -5/Zhirov | Learned location of Command (-1) 4912 | -5/Zhirov | Zhirov requested help retrieving the SGEMP Prototype 4932 | -5/Zhirov | Found Alien Artifact 4932 | -5/Zhirov | Identified Integrated Dissipator 4932 | -5/Zhirov | Installed Integrated Dissipator, increased core heat dissipation (+20) 4950 | -5/Zhirov | Found Alien Artifact 5043 | -5/Zhirov | Entered Proximity Caves 5043 | -4/Proximity Caves | Accompanied by 4 allies 5048 | -4/Proximity Caves | Spotter reported a threat 5183 | -4/Proximity Caves | Spotter reported a threat 5275 | -4/Proximity Caves | Discovered exit to Factory (range 10) 5291 | -4/Proximity Caves | Entered Factory 5291 | -4/Factory | Accompanied by 2 allies 5291 | -4/Factory | Evolved 2 slots: Power x1, Weapon x1 5320 | -4/Factory | Found Prototype Hackware 5320 | -4/Factory | Identified Exp. Hacking Suite 5381 | -4/Factory | Discovered new exit (range 4) 5632 | -4/Factory | Identified exit to Upper Caves 5632 | -4/Factory | Identified exit to Armory 5678 | -4/Factory | Entered Upper Caves 5678 | -4/Upper Caves | Accompanied by 2 allies 5687 | -4/Upper Caves | Learned 12 Research zone layouts 5735 | -4/Upper Caves | Spotted B-86 Titan 5779 | -4/Upper Caves | Allies destroyed B-86 Titan 5791 | -4/Upper Caves | Build established: Scavenger-Skirmisher 5932 | -4/Upper Caves | Discovered new exit (range 9) 5937 | -4/Upper Caves | Attracted the attention of an 0b10 checkpoint 5964 | -4/Upper Caves | Identified exit to Upper Caves 5978 | -4/Upper Caves | Entered another Upper Caves area 5978 | -4/Upper Caves | Accompanied by 1 ally 6182 | -4/Upper Caves | Attracted the attention of an 0b10 checkpoint 6427 | -4/Upper Caves | Encountered a Warlord checkpoint 6501 | -4/Upper Caves | Learned Research trap positions 6525 | -4/Upper Caves | Discovered new exit (range 10) 6533 | -4/Upper Caves | Identified exit to Warlord 6540 | -4/Upper Caves | Entered Warlord 6540 | -4/Warlord | Accompanied by 1 ally 6717 | -4/Warlord | Warlord's base attacked by MAIN.C 6727 | -4/Warlord | Found Prototype Energy Gun 6727 | -4/Warlord | Identified Vortex Shotgun 6734 | -4/Warlord | Found Prototype Piercing Weapon 6734 | -4/Warlord | Identified Vortex Lance 6791 | -4/Warlord | Met Warlord 6947 | -4/Warlord | Lost 4 allies 6996 | -4/Warlord | Opened side exit 7021 | -4/Warlord | Build established: Scavenger-Mutant 7067 | -4/Warlord | Warlord forces counterattacked 7192 | -4/Warlord | Discovered new exit (range 15) 7214 | -4/Warlord | Identified exit to Proximity Caves 7215 | -4/Warlord | Entered Proximity Caves 7234 | -3/Proximity Caves | Acquired the password to a Derelict Tinkerer's latest research 7245 | -3/Proximity Caves | Found Prototype Special Weapon 7299 | -3/Proximity Caves | Attracted the attention of an 0b10 outpost 7329 | -3/Proximity Caves | Caught by Unaware searching for contraband prototypes 7369 | -3/Proximity Caves | Caught by Unaware searching for contraband prototypes 7408 | -3/Proximity Caves | Destroyed 15 combat bots 7592 | -3/Proximity Caves | Build established: Scavenger-Skirmisher 7745 | -3/Proximity Caves | Discovered new exit (range 9) 7763 | -3/Proximity Caves | Identified exit to Research 7764 | -3/Proximity Caves | Entered Research 7764 | -3/Research | Evolved 2 slots: Utility x2 7765 | -3/Research | Identified exit to Research 7767 | -3/Research | Loaded intel: 101 trap records 7919 | -3/Research | Build established: Scavenger-Mutant 8185 | -3/Research | Identified exit to Testing 8626 | -3/Research | System corruption reached 10% 8656 | -3/Research | Lost 14 parts (3p5n5u1w) 8687 | -3/Research | Identified Molecular Deconstructor 8771 | -3/Research | Lost 4 parts (3n1w) 9412 | -3/Research | Spotted B-86 Titan 9423 | -3/Research | Entered another Research area 9423 | -2/Research | Warlord forces began assault on 0b10 9423 | -2/Research | Evolved 2 slots: Utility x2 9533 | -2/Research | Research machine network offline 9781 | -2/Research | Borebot progress halted 9914 | -2/Research | Met up with Warlord 9967 | -2/Research | Lost 6 allies 10047 | -2/Research | Spotted Striker 10077 | -2/Research | Lost 3 allies 10082 | -2/Research | Spotted Striker 10082 | -2/Research | Spotted Executioner 10101 | -2/Research | Spotted Executioner 10114 | -2/Research | Lost 3 allies 10129 | -2/Research | Spotted Striker 10145 | -2/Research | Borebot progress halted 10154 | -2/Research | Lost 5 parts (1p2u2w) 10258 | -2/Research | Spotted Striker 10273 | -2/Research | Spotted Striker 10303 | -2/Research | Spotted Striker 10305 | -2/Research | Warlord destroyed during the assault 10305 | -2/Research | Spotted Striker 10310 | -2/Research | Destroyed FQ-IH1(K) 10314 | -2/Research | Destroyed Striker 10341 | -2/Research | Lost 3 allies 10446 | -2/Research | Build established: Scavenger-Tank 10582 | -2/Research | Spotted Executioner 10602 | -2/Research | Spotted Executioner 10626 | -2/Research | Destroyed Executioner 10628 | -2/Research | Lost 4 allies 10634 | -2/Research | Found Prototype Processor 10634 | -2/Research | Identified Exp. Core Analyzer 10801 | -2/Research | Spotted Executioner 10813 | -2/Research | Spotted Executioner 10823 | -2/Research | Destroyed Executioner 10856 | -2/Research | Destroyed 8 combat bots 10870 | -2/Research | Destroyed Executioner 11033 | -2/Research | Spotted Striker 11045 | -2/Research | Destroyed Striker 11090 | -2/Research | Discovered new exit (range 15) 11113 | -2/Research | Identified exit to Access 11164 | -2/Research | Entered Access 11164 | -1/Access | Evolved 2 slots: Utility x1, Weapon x1 11281 | -1/Access | Fabricated G-50 Soldier (x3) 11329 | -1/Access | Lost 3 allies 11356 | -1/Access | Spotted B-99 Colossus 11397 | -1/Access | Destroyed B-99 Colossus 11422 | -1/Access | Lost 3 parts (2u1w) 11671 | -1/Access | Lost 3 parts (1p2u) 11763 | -1/Access | Exp. Hacking Suite fried by hacking feedback 12020 | -1/Access | Spotted B-99 Colossus 12056 | -1/Access | Destroyed B-99 Colossus 12082 | -1/Access | Spotted B-99 Colossus 12118 | -1/Access | Destroyed B-99 Colossus 12151 | -1/Access | Found Prototype Ballistic Gun 12151 | -1/Access | Identified Multirail 12183 | -1/Access | Discovered new exit (range 5) 12344 | -1/Access | Lost 3 parts (2n1w) 12350 | -1/Access | System corruption reached 10% 12562 | -1/Access | Build established: Scavenger-Mutant 12630 | -1/Access | Lost 4 parts (1p1n2u) 12767 | -1/Access | Lost 6 parts (1p1n2u2w) 12904 | -1/Access | Allied Derelicts emerged from ambush trap array 13028 | -1/Access | Lost 3 allies 13075 | -1/Access | Found Imp. Powered Armor 13427 | -1/Access | Build established: Scavenger-Gunner 13580 | -1/Access | Destroyed 7 combat bots 13684 | -1/Access | Lost 3 parts (2u1w) 13914 | -1/Access | First assault squad dispatched 14175 | -1/Access | Destroyed 7 combat bots 14354 | -1/Access | Destroyed 7 combat bots 14397 | -1/Access | Core integrity fell below 50% 14397 | -1/Access | System corruption reached 30% 14479 | -1/Access | Core integrity fell below 20% 14490 | -1/Access | Self-destructed Last Messages --------------- 14457_ Com. Wheel destroyed. 14457_ O-24 Administrator: "IFF HANDSHAKE FAILED. SECURING TERMINAL." 14459_ O-24 Administrator uses terminal to summon reinforcements. 14459_ ALERT: Hostiles spotted, dispatching reinforcements to Terminal A013. 14459_ O-24 Administrator locks terminal. 14462_ Com. Wheel destroyed. 14465_ System corrupted: Matter fused (-7). 14468_ O-24 Administrator suffers critical hit (Burn). 14471_ Adv. Heat Sink destroyed. 14471_ Com. Wheel destroyed. 14474_ Acquired Hardcell Cannon. 14478_ Critical hit (Burn: +37). 14485_ System corrupted: Component data lost. 14486_ Destroyed Sml. Battery. 14486_ P-80 Master knocked back. 14489_ Slug penetrates Wall. Map ----- +----------------------------------------------------+ | ?????????????????????????## ! ## # ??? | | ?????????????????????????## ! ## # ? !! # | | ?????????????????????????## * ## # !! # | | ?????????????????????????##" +% + !! # | | ?????????????????????????##" ## # # | | ?????????????????????????##T ## # ? # | | ?????????????????????????## % % ## ##???### | | ????????????????????? #####" ## ##?????? | | ????????????????????? #####" * %##%######## | | ????????????????????? + " %*% |## ######## | | ????????????????????? ##### % % % !## ## | | ????????????????????? # " % ## ## | | ????????????????????? ###########+######= # | | ????????????????????? ########## !%[ %[ + | | ????????????????????? #!! = + ^ = # | | ????????????????????? #! # # | | ????????????????????? #!= + ^ ####### | | ????????????????????? # # ####### | | ????????????????????? # # ####### | | ?????????????????????########### ### [ | | ???????????????????? %###% ! | | ??????????????????? % %%%% [ | | ???????????????????### ###################### [= | | ???????????????????### ######################[!=% | | ????????????????????????#######################*%% | | ?????????????#########??#@ ######### %! | | ?????????? # g # #! ! | | ?????????? hp ""T"" H/ !|= #!*= | | ?????????????????##### # """"" # = # =| | | ?????????????????????# # # = = #! % | | ?????????????????????# ?# # [!=# =! | | ?????????????????????#??############### !!!%#%=! | | ?????????????????????????????????????## ===+ | | ?????????????????????????????????????## * # | | ?????????????????????????????????????## # | | ?????????????????????????????????????## # | | ?????????????????????????????????????## # | | ?????????????????????????????????????########## | | ?????????????????????????????????????##########""" | | ????????????????????????????????????????????? ? | | ?????????????????????????????????????????????????? | | ?????????????????????????????????????????????????? | | ?????????????????????????????????????????????????? | | ?????????????????????????????????????????????????? | | ?????????????????????????????????????????????????? | | ?????????????????????????????????????????????????? | | ?????????????????????????????????????????????????? | | ?????????????????????????????????????????????????? | | ?????????????????????????????????????????????????? | | ?????????????????????????????????????????????????? | +----------------------------------------------------+ Best States ------------- Heat Dissipation 145 Energy Generation 65 Energy Capacity 1270 Matter Stores 300 Matter Capacity 300 Sight Range 22 Robot Scan Range 16 Terrain Scan Range 20 Terrain Scan Density 10 Base Temperature (-) 200 Armor Coverage 975 Resistance: KI 20 Resistance: TH 20 Resistance: EX 20 Resistance: EM 45 Resistance: I 20 Resistance: S 20 Resistance: P 20 Core Shielding 30 Power Shielding 66 Utility Shielding 90 Weapon Shielding 66 Phase Shifting 15 Evasion (%) 70 Targeting Accuracy 14 Target Analysis 12 Core Analysis 8 Recoil Reduction 6 Matter Filtering 30 Kinecelleration 30 Offensive Hacking 26 Item Schematics ----------------- None Robot Schematics ------------------ G-50 Soldier | -6/Factory | Downloaded Fabricated ------------ G-50 Soldier | x3 | -1/Access Repaired ---------- Nothing Studied --------- Myomer Leg | -3/Research | Hacked Alien Tech Used ----------------- Integrated Dissipator Achievements -------------- None Challenges ------------ None Game ------ Seed BorePhasingCartridge Manual? 0 Play Time 02:05:42 Cumulative 265.8 hours Start 2025.12.30 @ 17:35:16 End 2025.12.30 @ 20:26:59 Sessions 11 Manual Loads 0 Difficulty Adventurer Special Mode None Game No. 201 Rogue 10 Adventurer 191 Explorer 0 Win Type - Total 17 Types 7/0/7/3/0/0/0/0/0/0 Lore% 76 Gallery% 73 Achievement% 57 Wizard Run 0 Options --------- Layout 1 ASCII 0 Keyboard 0 Movement Mouse Keybinds 0 Fullscreen 1 Font 24/Smallcaps Map View 50x35 Zoom Use 0% Tactical HUD 1 Map Filters NONE Filters NONE Steam 1 RUN: 9f908241-24b8-4081-b592-dfc7be4a5ee7